[Event "SixDays Budapest IM-B January 2024"]
[Site "Budapest"]
[Date "2024.01.29"]
[Round "4.1"]
[White "Sgircea, Silvia-Raluca"]
[Black "Srinath, Rao S.V."]
[Result "0-1"]
[ECO "E62"]
[WhiteElo "2242"]
[BlackElo "2260"]
[Annotator "TA"]
[PlyCount "92"]
[EventDate "2024.01.26"]
[EventType "tourn"]
[EventCountry "HUN"]
[SourceTitle "playchess.com"]
[Source "ChessBase"]
[SourceQuality "1"]
[TimeControl "5400+30"]

{[%evp 13,92,29,30,29,45,39,64,39,61,33,40,44,47,36,63,71,66,62,87,68,84,67,97,87,102,102,264,296,278,148,241,245,232,70,68,7,83,34,31,30,48,33,88,90,87,83,65,26,58,54,63,44,88,-9,66,39,53,42,34,0,0,0,0,0,0,0,0,0,0,0,0,0,0,0,0,-121,-163,-168,-155,-29986,-29987]} 1. Nf3 {[%emt 0:00:04]} Nf6 {[%emt 0:01:33]} 2. c4 {[%emt 0:00:05]} g6 {[%emt 0:00:05]} 3. g3 {[%emt 0:00:07]} Bg7 {[%emt 0:00:04]} 4. Bg2 {[%emt 0:00:04]} O-O {[%emt 0:00:06]} 5. O-O {[%emt 0:00:10]} d6 {[%emt 0:00:04]} 6. d4 {[%emt 0:00:04]} c6 {[%emt 0:00:03]} 7. Nc3 {[%emt 0:00:11]} Bf5 {[%emt 0:00:06]} 8. Ng5 {[%emt 0:03:33]} h6 {[%emt 0:03:48]} 9. e4 {[%emt 0:00:10]} Bg4 {[%emt 0:00:05]} 10. Nf3 {[%emt 0:15:02] White is slightly better.} Qc8 {[%emt 0:04:18]} 11. Qb3 {[%emt 0:08:30]} Na6 {[%emt 0:05:39]} 12. Be3 {[%emt 0:03:20]} Re8 {[%emt 0:02:35]} 13. Nd2 {[%emt 0:10:54]} e5 {[%emt 0:05:53]} 14. d5 {[%emt 0:00:29]} Bd7 {[%emt 0:07:03]} 15. f3 {[%emt 0:01:18] Prevents Ng4.} c5 {[%emt 0:02:31]} 16. a3 {[%emt 0:06:16]} Nh5 {[%emt 0:01:17]} 17. Qc2 {[%emt 0:06:18]} Bh3 {[%emt 0:12:16]} 18. Rab1 {[%emt 0:11:02]} Bxg2 {[%emt 0:01:42]} 19. Kxg2 {[%emt 0:00:02]} f5 $2 {[%emt 0:02:27]} (19... b6 $16 {keeps fighting.} 20. Qa4 Kh7) 20. exf5 $18 {[%emt 0:04:13]} gxf5 {[%emt 0:00:05]} 21. b4 {[%emt 0:08:21]} (21. g4 $18) 21... b6 {[%emt 0:07:19]} (21... Rf8 $16 22. Rg1 Rf7) 22. Nb5 {[%emt 0:01:12]} Qd7 {[%emt 0:03:02]} 23. Bf2 $2 {[%emt 0:04:04]} (23. g4 $1 $18 {[%cal Rg4h5]} Nf4+ 24. Bxf4 exf4 25. Qxf5 (25. gxf5 Re2+ 26. Rf2 Rae8 $16) 25... Qxf5 26. gxf5) 23... Nf6 $14 {[%emt 0:01:15]} 24. Rfe1 {[%emt 0:01:54]} (24. Qd3 $14) 24... h5 {[%emt 0:04:54]} (24... cxb4 $1 $11 {keeps the balance.} 25. axb4 Nxd5) 25. Qa4 {[%emt 0:00:28]} (25. Be3 $16) 25... Nc7 {[%emt 0:00:47]} 26. bxc5 {[%emt 0:00:08]} dxc5 {[%emt 0:02:03]} 27. Nc3 {[%emt 0:03:22]} Qd6 {[%emt 0:03:10]} (27... Qxa4 $14 28. Nxa4 Rf8) 28. Qc2 $16 {[%emt 0:00:46]} Qd7 {[%emt 0:01:48]} 29. Nf1 {[%emt 0:03:30]} Nh7 {[%emt 0:07:17]} 30. Qd2 {[%emt 0:05:32] Inhibits Ng5.} Qd6 {[%emt 0:00:31]} 31. Ne3 {[%emt 0:01:33]} Rf8 {[%emt 0:00:04]} 32. Qc2 {[%emt 0:01:17]} Qd7 {[%emt 0:03:11] [#]} 33. Qa4 {[%emt 0:01:46] [#]} ({White should try} 33. g4 $1 $16 {[%cal Re3f5]} Ne8 34. Nxf5 (34. gxh5 Qf7 $15) 34... hxg4 35. fxg4) 33... b5 {[%emt 0:01:31]} 34. cxb5 {[%emt 0:00:59] And now Nc4 would win.} (34. Nxb5 $5 f4 35. Nc3 Qxa4 36. Nxa4 fxe3 37. Rxe3 $11) 34... f4 $1 {[%emt 0:00:05]} 35. Nf1 $1 {[%emt 0:00:38]} Ng5 {[%emt 0:00:15]} 36. Nd2 {[%emt 0:00:23]} Qh3+ {[%emt 0:00:54]} 37. Kg1 {[%emt 0:00:35] Qc4 would now be deadly.} fxg3 {[%emt 0:01:13]} 38. Bxg3 {[%emt 0:00:02] Strongly threatening Nce4.} Nxf3+ {[%emt 0:02:54]} 39. Nxf3 {[%emt 0:00:02]} Rxf3 {[%emt 0:00:06]} 40. Ne4 {[%emt 0:01:23]} h4 {[%emt 0:01:45] Dancing on a razor blade.} (40... Nxd5 $2 {too greedy.} 41. Qd1 (41. Nxc5 $2 {perishes.} Rxg3+ 42. hxg3 Qxg3+ 43. Kh1 Qh3+ 44. Kg1 Kh8 $19) 41... Rxg3+ 42. hxg3 $18 (42. Nxg3 Nf4 $16)) 41. Ng5 $1 {[%emt 0:00:01]} Rxg3+ {[%emt 0:00:06]} 42. hxg3 {[%emt 0:00:03]} Qxg3+ {[%emt 0:00:15]} 43. Kh1 {[%emt 0:00:03] aiming for Rg1.} Qxg5 $40 {[%emt 0:00:29][%mdl 128] Black has some attack.} 44. Rg1 {[%emt 0:00:02]} (44. d6 $1 $11 Ne6 45. b6) 44... Qf5 $17 {[%emt 0:03:07]} 45. Qxh4 {[%emt 0:00:51] Threatens to win with Rbf1.} Nxd5 {[%emt 0:00:04]} 46. Qg4 $2 {[%emt 0:01:53]} (46. Rbf1 $17 Nf4 47. Qh6 Qh3+ 48. Qxh3 Nxh3 49. Rg6) 46... Qh7+ {[%emt 0:00:21] Black used his chance.   Weighted Error Value: White=0.39/Black=0.18 (very precise) .  Loses game:     	White=1     	Black=1      Missed win:     	White=1     	---        Mistake:       	White=5     	Black=4      Inaccurate:     	White=4     	Black=4      OK:         	White=10    	Black=9      Best:        	White=4     	Black=4      Strong:       	White=2     	Black=1} 0-1

[Event "SixDays Budapest IM-B January 2024"]
[Site "Budapest"]
[Date "2024.01.29"]
[Round "4.2"]
[White "Egresi, Mate"]
[Black "Semprun Martinez, Fernando"]
[Result "1-0"]
[ECO "D82"]
[WhiteElo "2389"]
[BlackElo "2071"]
[Annotator "RC"]
[PlyCount "35"]
[EventDate "2024.01.26"]
[EventType "tourn"]
[EventCountry "HUN"]
[SourceTitle "playchess.com"]
[Source "ChessBase"]
[SourceQuality "1"]
[TimeControl "5400+30"]

1. d4 {[%emt 0:07:40]} Nf6 {[%emt 0:00:01]} 2. c4 {[%emt 0:00:09]} g6 {[%emt 0:00:03]} 3. Nc3 {[%emt 0:00:03]} d5 {[%emt 0:00:03]} 4. Bf4 {[%emt 0:00:06]} Bg7 {[%emt 0:00:04]} 5. e3 {[%emt 0:00:13]} c5 {[%emt 0:01:02]} 6. dxc5 {[%emt 0:00:14]} Be6 {[%emt 0:00:53]} 7. Nf3 {[%emt 0:00:52]} Qa5 {[%emt 0:10:38]} 8. Nd4 {[%emt 0:12:53]} Qxc5 {[%emt 0:03:34]} 9. Nb3 {[%emt 0:17:49]} Qc6 {[%emt 0:00:59]} 10. Nd4 {[%emt 0:03:02]} Qc5 {[%emt 0:09:07]} 11. Nxe6 {[%emt 0:08:16]} fxe6 {[%emt 0:00:24]} 12. Be2 {[%emt 0:04:41]} Nc6 {[%emt 0:05:05]} 13. cxd5 {[%emt 0:02:08]} exd5 {[%emt 0:00:30]} 14. O-O {[%emt 0:00:21]} O-O {[%emt 0:01:06]} 15. Rc1 {[%emt 0:01:46]} e5 {[%emt 0:02:11]} 16. Nxd5 {[%emt 0:07:14]} Qa5 {[%emt 0:01:16]} 17. Nxf6+ {[%emt 0:00:22]} Bxf6 {[%emt 0:00:14]} 18. Bh6 {[%emt 0:01:09]} 1-0

[Event "SixDays Budapest IM-B January 2024"]
[Site "Budapest"]
[Date "2024.01.29"]
[Round "4.3"]
[White "Varadi, Viktor"]
[Black "Kolimar, Kristof Pal"]
[Result "0-1"]
[ECO "B48"]
[WhiteElo "2368"]
[BlackElo "2304"]
[Annotator "TA"]
[PlyCount "120"]
[EventDate "2024.01.26"]
[EventType "tourn"]
[EventCountry "HUN"]
[SourceTitle "playchess.com"]
[Source "ChessBase"]
[SourceQuality "1"]
[TimeControl "5400+30"]

{[%evp 46,120,-11,-35,-11,-97,-102,-147,-137,-139,-147,-165,-118,-236,-241,-235,-229,-322,-322,-312,-305,-317,-299,-290,-281,-294,-275,-309,-297,-339,-287,-326,-307,-382,-384,-486,-484,-997,-862,-995,-969,-982,-1046,-806,-787,-710,-710,-632,-640,-637,-589,-881,-474,-1189,-1108,-1017,-960,-2623,-2547,-29974,-29977,-29978,-5093,-6211,-7837,-2624,-4820,-5613,-10236,-7088,-10656,-29980,-29981,-29981,-29982,-29983,-29983]} 1. e4 {[%emt 0:00:03]} c5 {[%emt 0:00:03]} 2. Nf3 {[%emt 0:00:06]} e6 {[%emt 0:00:05]} 3. d4 {[%emt 0:00:08]} cxd4 {[%emt 0:00:02]} 4. Nxd4 {[%emt 0:00:08]} Nc6 {[%emt 0:00:03]} 5. Nc3 {[%emt 0:00:13]} Qc7 {[%emt 0:00:04]} 6. Be3 {[%emt 0:00:16]} a6 {[%emt 0:00:04]} 7. Qd2 {[%emt 0:00:14]} Nf6 {[%emt 0:00:04]} 8. O-O-O {[%emt 0:00:32]} Be7 $1 {[%emt 0:00:05][%mdl 4] is now more promising than 8...Bb4. B48: Sicilian: Taimanov: 5 Nc3 Qc7 6 Be3 a6 without Be2.} 9. f3 {[%emt 0:00:39]} b5 {[%emt 0:00:04]} 10. g4 {[%emt 0:01:33]} Nxd4 {[%emt 0:00:22]} 11. Bxd4 {[%emt 0:01:01]} Bb7 {[%emt 0:00:04]} 12. h4 {[%emt 0:17:58]} O-O {[%emt 0:01:24]} 13. g5 {[%emt 0:08:55]} Nh5 {[%emt 0:00:06]} 14. Bh3 {[%emt 0:00:51]} f5 {[%emt 0:05:09]} 15. gxf6 {[%emt 0:06:36]} Bxf6 {[%emt 0:00:27]} 16. Bxf6 {[%emt 0:04:10]} Nxf6 {[%emt 0:00:08]} 17. h5 {[%emt 0:11:07]} Rf7 $146 {[%emt 0:13:02]} ({Predecessor:} 17... Rac8 18. a3 Rf7 19. h6 g6 20. Rhg1 Nh5 21. Bg4 Nf4 22. Kb1 Qc4 23. Qe3 Qc5 24. Qxc5 Rxc5 {½-½ Amon,N (2282)-Subelj,J (2445) SLO-chT NML 31st 2021 (5.4)}) 18. h6 {[%emt 0:00:30]} g6 {[%emt 0:01:48]} 19. Ne2 {[%emt 0:13:35]} Re8 {[%emt 0:11:21]} 20. Qd6 {[%emt 0:01:34]} Qc4 {[%emt 0:06:53]} 21. Nc3 {[%emt 0:01:33]} Rc8 {[%emt 0:10:02]} 22. a3 {[%emt 0:03:43]} Ne8 {[%emt 0:03:59]} 23. Qd3 {[%emt 0:05:57]} Qxd3 {[%emt 0:02:39]} 24. Rxd3 {[%emt 0:00:07]} Rc5 {[%emt 0:00:45]} 25. b4 {[%emt 0:09:19]} (25. Rhd1 $11 Nf6 26. Bf1) 25... Rh5 $17 {[%emt 0:04:22]} 26. Kb2 {[%emt 0:00:19]} Bc6 {[%emt 0:01:31]} (26... Rxh6 $2 27. Bxe6 dxe6 (27... Rxh1 28. Rxd7 Bc8 29. Bxf7+ Kf8 30. Ra7 $18) 28. Rxh6 $18) 27. Ne2 {[%emt 0:01:39]} Rxh6 {[%emt 0:07:02]} 28. Nd4 {[%emt 0:00:39]} Kf8 {[%emt 0:00:55]} ({Better is} 28... Nd6 $19 29. Nxc6 Nc4+ 30. Kc3 dxc6) 29. Rc3 {[%emt 0:04:27]} (29. Nxc6 $17 {is a better defense.} dxc6 30. e5) 29... Nd6 $19 {[%emt 0:05:00]} 30. Nxc6 {[%emt 0:02:21]} dxc6 {[%emt 0:00:05]} 31. Bg2 {[%emt 0:00:57]} (31. Rd1 $142 Nc4+ (31... Rxh3 32. Rxd6 Rhxf3 33. Rcxc6 $15) 32. Rxc4 bxc4 33. Bxe6 c3+ (33... Rxf3 34. Bxc4 Re3 35. Rd6 $11) 34. Kb3 Rxf3 35. Bc8) 31... Rxh1 {[%emt 0:00:22]} 32. Bxh1 {[%emt 0:00:04]} Nc4+ {[%emt 0:00:14]} 33. Kc1 {[%emt 0:00:15]} Ke7 {[%emt 0:05:53]} 34. Bg2 {[%emt 0:00:43]} Ne5 {[%emt 0:03:34]} 35. Kd2 {[%emt 0:00:17]} Kd6 {[%emt 0:00:18]} 36. Ke3 {[%emt 0:00:44]} g5 {[%emt 0:00:06]} 37. Ke2 {[%emt 0:00:29]} h5 {[%emt 0:02:39]} 38. Rb3 {[%emt 0:01:03]} Ng6 {[%emt 0:04:21]} 39. Rd3+ {[%emt 0:00:44]} Kc7 {[%emt 0:00:19]} 40. Rd1 {[%emt 0:01:01]} Nf4+ {[%emt 0:00:16]} 41. Kf2 {[%emt 0:00:06]} Rd7 {[%emt 0:00:08]} 42. Rxd7+ {[%emt 0:00:19]} Kxd7 {[%emt 0:00:01]} 43. Bf1 {[%emt 0:00:11]} Kd6 {[%emt 0:02:13]} 44. c3 {[%emt 0:00:57]} Ke5 {[%emt 0:00:37]} 45. Kg3 {[%emt 0:01:14]} Ng6 {[%emt 0:07:40]} 46. Bd3 {[%emt 0:01:00]} h4+ {[%emt 0:01:22]} 47. Kg4 {[%emt 0:00:12]} h3 {[%emt 0:00:04]} 48. Kg3 {[%emt 0:00:07]} Nh4 {[%emt 0:00:19]} 49. f4+ {[%emt 0:02:01]} (49. Bc2 $142) 49... gxf4+ $19 {[%emt 0:00:02]} 50. Kxh3 {[%emt 0:00:07]} Nf3 {[%emt 0:00:13]} 51. c4 {[%emt 0:01:41]} Kd4 {[%emt 0:00:26]} 52. cxb5 {[%emt 0:00:12]} cxb5 {[%emt 0:00:48]} (52... Kxd3 53. bxa6 Nd4 (53... Kxe4 $2 54. a7 $18) 54. a7 $11) 53. Bc2 {[%emt 0:00:22]} Kc3 {[%emt 0:00:07]} (53... Nd2 $142 54. Bd1 f3 (54... Nxe4 $2 55. Bb3 $19) (54... Kxe4 $2 55. Bg4 $19) 55. Bxf3 Nxf3 56. Kg3 Kxe4 57. Kg4 e5 58. Kg3 Nd2 59. Kg2 Kd4 60. Kg3 e4 61. a4 e3 (61... bxa4 {gets mated.} 62. Kh3 a3 63. Kg4 a2 64. Kh4 a1=Q 65. Kg5 e3 66. Kg6 e2 67. Kh7 e1=Q 68. Kg8 Qe8+ 69. Kh7 Qh1+ 70. Kg7 Qhh8#) 62. Kg2 bxa4 63. Kg3 e2 (63... a3 64. b5 e2 65. b6 e1=Q+ 66. Kg4 Qe4+ 67. Kg5 Ke5 68. b7 Nf3+ 69. Kh6 Kf6 70. b8=Q Qh4#) 64. Kf2 Kd3 65. Kg3 e1=Q+ (65... e1=R 66. Kh3 a3 67. Kg4 a2 68. Kg5 a1=Q 69. Kg6 Rf1 70. b5 Qf6+ 71. Kh5 Rg1 72. bxa6 Qh8#) 66. Kf4 Qe6 (66... a3 67. Kf5 a2 68. Kg5 a1=Q 69. Kg6 Qe6+ 70. Kh7 Qh1+ 71. Kg7 Qhh6#) 67. Kg5 Ne4+ 68. Kh5 Qf6 69. Kg4 Qg5+ 70. Kh3 Qg3#) 54. Bd1 $19 {[%emt 0:00:11]} Ne5 {[%emt 0:00:54]} 55. Kh4 {[%emt 0:00:46]} Nc4 {[%emt 0:00:52]} 56. Kg5 {[%emt 0:00:18]} e5 {[%emt 0:00:23]} 57. Kf6 {[%emt 0:00:20]} Kd4 {[%emt 0:01:25]} (57... Nxa3 58. Kxe5 Kd2 (58... Kxb4 59. Kxf4 Nc4 60. e5 $17) 59. Bg4 $19) 58. a4 {[%emt 0:00:39]} Kxe4 {[%emt 0:00:08]} 59. axb5 {[%emt 0:00:11]} axb5 {[%emt 0:00:06]} 60. Ke6 {[%emt 0:00:26]} Kd4 {[%emt 0:00:13]} 0-1

[Event "SixDays Budapest IM-B January 2024"]
[Site "Budapest"]
[Date "2024.01.29"]
[Round "4.4"]
[White "Mouhamad, Joachim"]
[Black "Nemeth, Zoltan"]
[Result "0-1"]
[ECO "C43"]
[WhiteElo "2316"]
[BlackElo "2194"]
[Annotator "RC"]
[PlyCount "128"]
[EventDate "2024.01.26"]
[EventType "tourn"]
[EventCountry "HUN"]
[SourceTitle "playchess.com"]
[Source "ChessBase"]
[SourceQuality "1"]
[TimeControl "5400+30"]

1. e4 {[%emt 0:02:30]} e5 {[%emt 0:00:32]} 2. Nf3 {[%emt 0:00:18]} Nf6 {[%emt 0:00:05]} 3. d4 {[%emt 0:00:18]} Nxe4 {[%emt 0:00:56]} 4. Bd3 {[%emt 0:00:09]} d5 {[%emt 0:00:39]} 5. Nxe5 {[%emt 0:00:18]} Nd7 {[%emt 0:08:06]} 6. Nc3 {[%emt 0:00:14]} Nxc3 {[%emt 0:03:55]} 7. bxc3 {[%emt 0:00:03]} Nxe5 {[%emt 0:00:05]} 8. dxe5 {[%emt 0:00:10]} g6 {[%emt 0:01:43]} 9. O-O {[%emt 0:00:44]} Bg7 {[%emt 0:02:00]} 10. Ba3 {[%emt 0:08:52]} Be6 {[%emt 0:00:05]} 11. Rb1 {[%emt 0:03:03]} Bxe5 {[%emt 0:00:11]} 12. Rxb7 {[%emt 0:01:12]} Bd6 {[%emt 0:00:17]} 13. Bb5+ {[%emt 0:02:22]} Ke7 {[%emt 0:00:06]} 14. Bc1 {[%emt 0:10:00]} Rb8 {[%emt 0:14:44]} 15. Qd4 {[%emt 0:10:38]} f6 {[%emt 0:00:23]} 16. Rxb8 {[%emt 0:10:38]} Qxb8 {[%emt 0:00:06]} 17. Qa4 {[%emt 0:06:01]} c5 {[%emt 0:09:18]} 18. Re1 {[%emt 0:02:00]} Bxh2+ {[%emt 0:05:53]} 19. Kh1 {[%emt 0:03:23]} Be5 {[%emt 0:00:06]} 20. c4 {[%emt 0:16:48]} Rd8 {[%emt 0:03:45]} 21. f4 {[%emt 0:04:42]} Bc3 {[%emt 0:02:46]} 22. Rxe6+ {[%emt 0:05:02]} Kxe6 {[%emt 0:00:04]} 23. cxd5+ {[%emt 0:00:07]} Kxd5 {[%emt 0:07:30]} 24. Kh2 {[%emt 0:06:43]} Kd6 {[%emt 0:04:14]} 25. Qc4 {[%emt 0:01:03]} a6 {[%emt 0:03:46]} 26. Ba4 {[%emt 0:01:09]} Ba5 {[%emt 0:04:25]} 27. Qf7 {[%emt 0:02:48]} Qc8 {[%emt 0:04:11]} 28. Qxf6+ {[%emt 0:02:04]} Qe6 {[%emt 0:01:53]} 29. Qh4 {[%emt 0:00:01]} Qe7 {[%emt 0:00:52]} 30. Qh3 {[%emt 0:00:20]} Kc7 {[%emt 0:00:53]} 31. Bb2 {[%emt 0:00:18]} Kb8 {[%emt 0:00:38]} 32. Be5+ {[%emt 0:00:48]} Ka7 {[%emt 0:00:10]} 33. Bc6 {[%emt 0:01:37]} Bc7 {[%emt 0:01:44]} 34. Bxc7 {[%emt 0:00:31]} Qxc7 {[%emt 0:00:05]} 35. Qf3 {[%emt 0:00:31]} g5 {[%emt 0:00:37]} 36. g3 {[%emt 0:00:33]} gxf4 {[%emt 0:02:10]} 37. gxf4 {[%emt 0:00:02]} Rd2+ {[%emt 0:00:20]} 38. Kg3 {[%emt 0:00:56]} Qg7+ {[%emt 0:00:38]} 39. Qg4 {[%emt 0:00:08]} Qe7 {[%emt 0:05:31]} 40. Qc8 {[%emt 0:00:34]} Rxc2 {[%emt 0:02:38]} 41. Bf3 {[%emt 0:00:48]} Qe1+ {[%emt 0:02:05]} 42. Kg4 {[%emt 0:00:11]} Qg1+ {[%emt 0:01:42]} 43. Kf5 {[%emt 0:00:01]} Qg6+ {[%emt 0:00:11]} 44. Ke5 {[%emt 0:00:01]} Qg7+ {[%emt 0:00:25]} 45. Kf5 {[%emt 0:00:25]} Qf7+ {[%emt 0:00:45]} 46. Ke5 {[%emt 0:00:09]} Qe7+ {[%emt 0:00:52]} 47. Kf5 {[%emt 0:00:02]} Rxa2 {[%emt 0:01:53]} 48. Qa8+ {[%emt 0:01:18]} Kb6 {[%emt 0:00:04]} 49. Qc6+ {[%emt 0:00:08]} Ka5 {[%emt 0:00:11]} 50. Qd5 {[%emt 0:01:23]} Ra4 {[%emt 0:02:08]} 51. Qe5 {[%emt 0:00:49]} Qf7+ {[%emt 0:01:40]} 52. Kg4 {[%emt 0:00:15]} Qxf4+ {[%emt 0:02:39]} 53. Qxf4 {[%emt 0:00:06]} Rxf4+ {[%emt 0:00:04]} 54. Kxf4 {[%emt 0:00:04]} Kb4 {[%emt 0:00:02]} 55. Ke4 {[%emt 0:00:48]} c4 {[%emt 0:00:51]} 56. Kd4 {[%emt 0:00:19]} a5 {[%emt 0:00:33]} 57. Bd1 {[%emt 0:00:24]} h6 {[%emt 0:00:43]} 58. Kd5 {[%emt 0:01:37]} c3 {[%emt 0:00:19]} 59. Kd4 {[%emt 0:00:10]} h5 {[%emt 0:00:05]} 60. Kd3 {[%emt 0:00:29]} h4 {[%emt 0:00:46]} 61. Kc2 {[%emt 0:00:12]} h3 {[%emt 0:00:14]} 62. Bf3 {[%emt 0:00:26]} h2 {[%emt 0:00:10]} 63. Bd5 {[%emt 0:01:08]} a4 {[%emt 0:00:05]} 64. Kb1 {[%emt 0:00:49]} a3 {[%emt 0:00:08]} 0-1

[Event "SixDays Budapest IM-B January 2024"]
[Site "Budapest"]
[Date "2024.01.29"]
[Round "4.5"]
[White "Nemitz, Alfred"]
[Black "Ihnat, Marek"]
[Result "1-0"]
[ECO "D00"]
[WhiteElo "2223"]
[BlackElo "2111"]
[Annotator "RC"]
[PlyCount "65"]
[EventDate "2024.01.26"]
[EventType "tourn"]
[EventCountry "HUN"]
[SourceTitle "playchess.com"]
[Source "ChessBase"]
[SourceQuality "1"]
[TimeControl "5400+30"]

1. d4 {[%emt 0:00:02]} d5 {[%emt 0:00:50]} 2. Nc3 {[%emt 0:00:11]} Nf6 {[%emt 0:00:07]} 3. Bf4 {[%emt 0:00:07]} Bf5 {[%emt 0:00:07]} 4. e3 {[%emt 0:01:35]} e6 {[%emt 0:00:46]} 5. Nb5 {[%emt 0:01:55]} Na6 {[%emt 0:00:16]} 6. Nf3 {[%emt 0:02:32]} c6 {[%emt 0:03:46]} 7. Nc3 {[%emt 0:00:27]} Nc7 {[%emt 0:01:42]} 8. Ne5 {[%emt 0:00:27]} h6 {[%emt 0:02:07]} 9. g4 {[%emt 0:02:53]} Bh7 {[%emt 0:00:17]} 10. h4 {[%emt 0:00:32]} Nd7 {[%emt 0:05:56]} 11. Qf3 {[%emt 0:32:14]} Nxe5 {[%emt 0:02:46]} 12. Bxe5 {[%emt 0:00:30]} f6 {[%emt 0:20:22]} 13. Bg3 {[%emt 0:05:51]} Bb4 {[%emt 0:03:07]} 14. Bd3 {[%emt 0:03:04]} Nb5 {[%emt 0:04:32]} 15. Kf1 {[%emt 0:09:14]} Bxc3 {[%emt 0:07:42]} 16. bxc3 {[%emt 0:03:05]} Nxc3 {[%emt 0:00:08]} 17. g5 {[%emt 0:00:57]} Ne4 {[%emt 0:02:03]} 18. Qh5+ {[%emt 0:03:26]} Ke7 {[%emt 0:00:35]} 19. gxf6+ {[%emt 0:07:29]} Nxf6 {[%emt 0:08:19]} 20. Qe5 {[%emt 0:01:21]} Bxd3+ {[%emt 0:02:03]} 21. cxd3 {[%emt 0:00:02]} Rf8 {[%emt 0:01:06]} 22. Rb1 {[%emt 0:00:52]} Qd7 {[%emt 0:02:35]} 23. h5 {[%emt 0:02:25]} Rf7 {[%emt 0:00:27]} 24. Bh4 {[%emt 0:00:41]} Kf8 {[%emt 0:01:02]} 25. Rg1 {[%emt 0:01:50]} Rc8 {[%emt 0:13:16]} 26. Rg6 {[%emt 0:00:20]} Qc7 {[%emt 0:00:49]} 27. Bxf6 {[%emt 0:03:41]} gxf6 {[%emt 0:00:07]} 28. Qxe6 {[%emt 0:00:33]} Re8 {[%emt 0:00:57]} 29. Qf5 {[%emt 0:01:48]} Ke7 {[%emt 0:01:16]} 30. Rxh6 {[%emt 0:01:02]} b6 {[%emt 0:00:18]} 31. Ke2 {[%emt 0:00:21]} Qd6 {[%emt 0:01:47]} 32. Rg1 {[%emt 0:01:26]} Qa3 {[%emt 0:02:39]} 33. Rxf6 {[%emt 0:01:07]} 1-0

[Event "SixDays Budapest IM-B January 2024"]
[Site "Budapest"]
[Date "2024.01.29"]
[Round "5.1"]
[White "Ihnat, Marek"]
[Black "Sgircea, Silvia-Raluca"]
[Result "1/2-1/2"]
[ECO "B36"]
[WhiteElo "2111"]
[BlackElo "2242"]
[Annotator "RC"]
[PlyCount "157"]
[EventDate "2024.01.26"]
[EventType "tourn"]
[EventCountry "HUN"]
[SourceTitle "playchess.com"]
[Source "ChessBase"]
[SourceQuality "1"]
[TimeControl "5400+30"]

1. e4 {[%emt 0:03:31]} c5 {[%emt 0:00:06]} 2. Nf3 {[%emt 0:00:13]} Nc6 {[%emt 0:00:04]} 3. d4 {[%emt 0:00:11]} cxd4 {[%emt 0:00:06]} 4. Nxd4 {[%emt 0:00:19]} g6 {[%emt 0:00:06]} 5. c4 {[%emt 0:00:19]} Nf6 {[%emt 0:00:43]} 6. Nc3 {[%emt 0:00:20]} d6 {[%emt 0:00:04]} 7. Be2 {[%emt 0:00:48]} Nxd4 {[%emt 0:00:12]} 8. Qxd4 {[%emt 0:00:06]} Bg7 {[%emt 0:00:03]} 9. Be3 {[%emt 0:01:17]} O-O {[%emt 0:00:10]} 10. Qd2 {[%emt 0:00:59]} a5 {[%emt 0:01:37]} 11. O-O {[%emt 0:01:05]} a4 {[%emt 0:06:00]} 12. f3 {[%emt 0:01:51]} Qa5 {[%emt 0:01:53]} 13. Rac1 {[%emt 0:01:38]} Be6 {[%emt 0:03:07]} 14. Nd5 {[%emt 0:00:01]} Bxd5 {[%emt 0:10:50]} 15. Qxa5 {[%emt 0:00:09]} Rxa5 {[%emt 0:00:02]} 16. cxd5 {[%emt 0:00:13]} Nd7 {[%emt 0:00:07]} 17. Rc7 {[%emt 0:00:28]} Nc5 {[%emt 0:00:24]} 18. Rxe7 {[%emt 0:00:02]} Bxb2 {[%emt 0:00:34]} 19. Rc7 {[%emt 0:00:01]} Raa8 {[%emt 0:08:30]} 20. Bf4 {[%emt 0:04:59]} Rfd8 {[%emt 0:00:35]} 21. g3 {[%emt 0:00:34]} Ba3 {[%emt 0:02:43]} 22. Rb1 {[%emt 0:03:54]} Rab8 {[%emt 0:03:56]} 23. Kf1 {[%emt 0:01:21]} Rd7 {[%emt 0:06:59]} 24. Rxd7 {[%emt 0:01:25]} Nxd7 {[%emt 0:00:01]} 25. Bb5 {[%emt 0:03:51]} Ne5 {[%emt 0:00:11]} 26. Ke2 {[%emt 0:02:05]} Ra8 {[%emt 0:11:02]} 27. Be3 {[%emt 0:12:06]} f5 {[%emt 0:07:28]} 28. exf5 {[%emt 0:09:20]} gxf5 {[%emt 0:00:01]} 29. Bd3 {[%emt 0:00:29]} Nxd3 {[%emt 0:00:29]} 30. Kxd3 {[%emt 0:00:06]} Rb8 {[%emt 0:00:46]} 31. Ba7 {[%emt 0:03:23]} Re8 {[%emt 0:05:01]} 32. Rxb7 {[%emt 0:00:49]} Re1 {[%emt 0:01:40]} 33. Bd4 {[%emt 0:13:13]} Rd1+ {[%emt 0:00:11]} 34. Kc4 {[%emt 0:00:19]} Rd2 {[%emt 0:07:09]} 35. Rb8+ {[%emt 0:05:41]} Kf7 {[%emt 0:00:07]} 36. Ra8 {[%emt 0:00:12]} Rc2+ {[%emt 0:06:33]} 37. Kb5 {[%emt 0:05:57]} Bb2 {[%emt 0:03:27]} 38. Rxa4 {[%emt 0:10:47]} Bxd4 {[%emt 0:00:06]} 39. Rxd4 {[%emt 0:00:05]} Rxa2 {[%emt 0:00:04]} 40. Rh4 {[%emt 0:00:06]} Kf6 {[%emt 0:01:51]} 41. Rxh7 {[%emt 0:01:57]} Ke5 {[%emt 0:00:10]} 42. Rh5 {[%emt 0:00:38]} Rc2 {[%emt 0:04:58]} 43. g4 {[%emt 0:00:58]} Kxd5 {[%emt 0:00:03]} 44. Rxf5+ {[%emt 0:00:14]} Ke6 {[%emt 0:00:02]} 45. h4 {[%emt 0:01:01]} d5 {[%emt 0:00:03]} 46. h5 {[%emt 0:02:42]} d4 {[%emt 0:00:28]} 47. h6 {[%emt 0:02:59]} d3 {[%emt 0:00:04]} 48. Rf8 {[%emt 0:03:04]} Rh2 {[%emt 0:01:33]} 49. Rd8 {[%emt 0:02:26]} Rxh6 {[%emt 0:00:44]} 50. Rxd3 {[%emt 0:02:16]} Ke5 {[%emt 0:00:07]} 51. Kc5 {[%emt 0:01:56]} Kf4 {[%emt 0:00:21]} 52. Kd4 {[%emt 0:00:25]} Re6 {[%emt 0:03:00]} 53. Kd5 {[%emt 0:00:39]} Re5+ {[%emt 0:00:29]} 54. Kd6 {[%emt 0:00:38]} Re2 {[%emt 0:00:10]} 55. Ra3 {[%emt 0:01:10]} Re1 {[%emt 0:00:17]} 56. Kd5 {[%emt 0:00:05]} Re2 {[%emt 0:00:25]} 57. Kd4 {[%emt 0:00:26]} Re8 {[%emt 0:00:30]} 58. Rb3 {[%emt 0:01:00]} Rd8+ {[%emt 0:00:14]} 59. Kc5 {[%emt 0:00:19]} Rd7 {[%emt 0:00:39]} 60. Kc6 {[%emt 0:00:17]} Rd1 {[%emt 0:00:11]} 61. Kc5 {[%emt 0:00:43]} Rd8 {[%emt 0:00:38]} 62. Kc4 {[%emt 0:00:05]} Rd7 {[%emt 0:01:11]} 63. Rd3 {[%emt 0:00:05]} Re7 {[%emt 0:00:03]} 64. Kd4 {[%emt 0:00:54]} Re8 {[%emt 0:00:18]} 65. Kc3 {[%emt 0:00:25]} Re2 {[%emt 0:00:06]} 66. Kb3 {[%emt 0:00:29]} Rh2 {[%emt 0:01:51]} 67. Kc3 {[%emt 0:00:35]} Re2 {[%emt 0:00:09]} 68. Kc4 {[%emt 0:00:54]} Re7 {[%emt 0:00:39]} 69. Kd4 {[%emt 0:00:36]} Re8 {[%emt 0:00:39]} 70. Kd5 {[%emt 0:00:00]} Re2 {[%emt 0:00:28]} 71. Rd1 {[%emt 0:00:00]} Kxf3 {[%emt 0:00:37]} 72. Rg1 {[%emt 0:00:18]} Kf2 {[%emt 0:00:10]} 73. Rh1 {[%emt 0:01:22]} Kf3 {[%emt 0:00:05]} 74. g5 {[%emt 0:00:25]} Rg2 {[%emt 0:00:48]} 75. Rf1+ {[%emt 0:00:27]} Kg4 {[%emt 0:00:21]} 76. Rf8 {[%emt 0:00:52]} Kh5 {[%emt 0:00:06]} 77. Rh8+ {[%emt 0:00:19]} Kg6 {[%emt 0:00:06]} 78. Rg8+ {[%emt 0:00:12]} Kf7 {[%emt 0:00:23]} 79. Ra8 {[%emt 0:00:12]} 1/2-1/2